fUSD/lending_fUSD_20251027
["ID","MTS","AMOUNT","RATE_DAILY","PERIOD"]
[392485694,1761556541067,-500.0,0.00043835,120]
[392485695,1761556541093,-508.03598983,0.00043835,120]
[392485696,1761556541119,-500.0,0.00043835,120]
[392485697,1761556541145,-500.0,0.00043835,120]
[392485698,1761556541171,-223.27623978,0.00043835,120]
[392485699,1761556541197,-422.02263331,0.00043835,120]
[392485700,1761556541223,-500.0,0.00043835,120]
[392485701,1761556541249,-500.0,0.00043835,120]
[392485702,1761556541276,-503.88980063,0.00043835,120]
[392485703,1761556541303,-500.0,0.00043835,120]
[392485704,1761556541330,-500.0,0.00043835,120]
[392485705,1761556541357,-500.0,0.00043835,120]
[392485706,1761556541385,-574.0,0.00043835,120]
[392485707,1761556541413,-500.0,0.00043835,120]
[392485708,1761556541443,-500.0,0.00043835,120]
[392485709,1761556541470,-500.0,0.00043835,120]
[392485710,1761556541499,-692.97,0.00043835,120]
[392485711,1761556541540,-537.66913232,0.00043835,120]
[392485712,1761556541569,-692.97,0.00043835,120]
[392485713,1761556541600,-692.97,0.00043835,120]
[392485714,1761556541629,-692.97,0.00043835,120]
[392485715,1761556541657,-692.97,0.00043835,120]
[392485716,1761556541687,-692.97,0.00043835,120]
[392485717,1761556541723,-692.97,0.00043835,120]
[392485718,1761556541763,-692.97,0.00043835,120]
[392485719,1761556541796,-692.97,0.00043835,120]
[392485720,1761556541825,-692.97,0.00043835,120]
[392485721,1761556541853,-692.97,0.00043835,120]
[392485722,1761556541882,-692.97,0.00043835,120]
[392485723,1761556541910,-692.97,0.00043835,120]
[392485724,1761556541939,-692.97,0.00043835,120]
[392485725,1761556541967,-692.97,0.00043835,120]
[392485726,1761556541999,-692.97,0.00043835,120]
[392485727,1761556542032,-500.0,0.00043835,120]
[392485728,1761556542065,-692.97,0.00043835,120]
[392485729,1761556542093,-500.0,0.00043835,120]
[392485730,1761556542122,-692.97,0.00043835,120]
[392485731,1761556542151,-369.14242651,0.00043835,120]
[392485732,1761556542181,-692.97,0.00043835,120]
[392485733,1761556542209,-692.97,0.00043835,120]
[392485734,1761556542237,-692.97,0.00043835,120]
[392485735,1761556542270,-692.97,0.00043835,120]
[392485736,1761556542298,-692.97,0.00043835,120]
[392485737,1761556542329,-692.97,0.00043835,120]
[392485738,1761556542357,-500.0,0.00043835,120]
[392485739,1761556542384,-511.53153412,0.00043835,120]
[392485740,1761556542414,-500.0,0.00043835,120]
[392485741,1761556542448,-500.0,0.00043835,120]
[392485742,1761556542479,-483.3198623,0.00043835,120]
[392485743,1761556542511,-354.92505924,0.00043835,120]
[392485744,1761556542539,-500.0,0.00043835,120]
[392485745,1761556542570,-500.0,0.00043835,120]
[392485746,1761556542597,-500.0,0.00043835,120]
[392485747,1761556542626,-500.0,0.00043835,120]
[392485748,1761556542654,-500.0,0.00043835,120]
[392485749,1761556542686,-500.0,0.00043835,120]
[392485750,1761556542713,-281.16670312,0.00043835,120]
[392485751,1761556542744,-500.0,0.00043835,120]
[392485752,1761556542773,-500.0,0.00043835,120]
[392485753,1761556542800,-500.0,0.00043835,120]
[392485754,1761556542828,-500.0,0.00043835,120]
[392485755,1761556542855,-500.0,0.00043835,120]
[392485756,1761556542883,-512.81,0.00043835,120]
[392485757,1761556542909,-505.97678854,0.00043835,120]
[392485758,1761556542936,-628.81194465,0.00043835,120]
[392485759,1761556542963,-500.0,0.00043835,120]
[392485760,1761556542995,-208.14,0.00043835,120]
[392485761,1761556543024,-500.0,0.00043835,120]
[392485762,1761556543052,-500.0,0.00043835,120]
[392485763,1761556543082,-185.97360384,0.00043835,120]
[392485764,1761556543110,-500.0,0.00043835,120]
[392485765,1761556543137,-500.0,0.00043835,120]
[392485766,1761556543166,-190.06874116,0.00043835,120]
[392485767,1761556543192,-500.0,0.00043835,120]
[392485768,1761556543219,-500.0,0.00043835,120]
[392485769,1761556543248,-511.40327335,0.00043835,120]
[392485770,1761556543275,-500.0,0.00043835,120]
[392485771,1761556543302,-500.0,0.00043835,120]
[392485772,1761556543330,-500.0,0.00043835,120]
[392485773,1761556543356,-500.0,0.00043835,120]
[392485774,1761556543384,-500.0,0.00043835,120]
[392485775,1761556543411,-500.0,0.00043835,120]
[392485776,1761556543442,-582.00371845,0.00043835,120]
[392485777,1761556543471,-507.87897794,0.00043835,120]
[392485778,1761556543498,-500.0,0.00043835,120]
[392485779,1761556543527,-500.0,0.00043835,120]
[392485780,1761556543695,-500.0,0.00043835,120]
[392485781,1761556543723,-500.0,0.00043835,120]
[392485782,1761556543749,-500.0,0.00043835,120]
[392485783,1761556543775,-500.0,0.00043835,120]
[392485784,1761556543801,-500.0,0.00043835,120]
[392485785,1761556543829,-500.0,0.00043835,120]
[392485786,1761556543857,-500.0,0.00043835,120]
[392485787,1761556543883,-500.0,0.00043835,120]
[392485788,1761556543910,-500.0,0.00043835,120]
[392485789,1761556543938,-500.0,0.00043835,120]
[392485790,1761556543965,-500.0,0.00043835,120]
[392485791,1761556543993,-591.89560394,0.00043835,120]
[392485792,1761556544020,-500.0,0.00043835,120]
[392485793,1761556544046,-500.0,0.00043835,120]
[392485794,1761556544073,-500.0,0.00043835,120]
[392485795,1761556544100,-500.0,0.00043835,120]
[392485796,1761556544129,-500.0,0.00043835,120]
[392485797,1761556544159,-500.0,0.00043835,120]
[392485798,1761556544188,-500.0,0.00043835,120]
[392485799,1761556544217,-500.0,0.00043835,120]
[392485800,1761556544245,-500.0,0.00043835,120]
[392485801,1761556544272,-584.5,0.00043835,120]
[392485802,1761556544300,-500.0,0.00043835,120]
[392485803,1761556544327,-500.0,0.00043835,120]
[392485804,1761556544354,-500.0,0.00043835,120]
[392485805,1761556544381,-500.0,0.00043835,120]
[392485806,1761556544409,-500.0,0.00043835,120]
[392485807,1761556544440,-500.0,0.00043835,120]
[392485808,1761556544468,-500.0,0.00043835,120]
[392485809,1761556544497,-500.0,0.00043835,120]
[392485810,1761556544524,-500.0,0.00043835,120]
[392485811,1761556544551,-500.0,0.00043835,120]
[392485812,1761556544578,-500.0,0.00043835,120]
[392485813,1761556544605,-500.0,0.00043835,120]
[392485814,1761556544633,-500.0,0.00043835,120]
[392485815,1761556544673,-409.99134148,0.00043835,120]
[392485816,1761556544704,-500.0,0.00043835,120]
[392485817,1761556544733,-500.0,0.00043835,120]
[392485818,1761556544761,-500.0,0.00043835,120]
[392485819,1761556544790,-500.0,0.00043835,120]
[392485820,1761556544822,-500.0,0.00043835,120]
[392485821,1761556544850,-500.0,0.00043835,120]
[392485822,1761556544878,-500.0,0.00043835,120]
[392485823,1761556544908,-500.0,0.00043835,120]
[392485824,1761556544936,-500.0,0.00043835,120]
[392485825,1761556544965,-500.0,0.00043835,120]
[392485826,1761556544995,-500.0,0.00043835,120]
[392485827,1761556545024,-500.0,0.00043835,120]
[392485828,1761556545054,-500.0,0.00043835,120]
[392485829,1761556545083,-500.0,0.00043835,120]
[392485830,1761556545115,-608.52162498,0.00043835,120]
[392485831,1761556545147,-500.0,0.00043835,120]
[392485832,1761556545176,-500.0,0.00043835,120]
[392485833,1761556545206,-500.0,0.00043835,120]
[392485834,1761556545235,-500.0,0.00043835,120]
[392485835,1761556545265,-500.0,0.00043835,120]
[392485836,1761556545292,-500.0,0.00043835,120]
[392485837,1761556545321,-500.0,0.00043835,120]
[392485838,1761556545349,-500.0,0.00043835,120]
[392485839,1761556545381,-500.0,0.00043835,120]
[392485840,1761556545409,-500.0,0.00043835,120]
[392485841,1761556545442,-500.0,0.00043835,120]
[392485842,1761556545470,-500.0,0.00043835,120]
[392485843,1761556545497,-500.0,0.00043835,120]
[392485844,1761556545526,-500.0,0.00043835,120]
[392485845,1761556545553,-500.0,0.00043835,120]
[392485846,1761556545580,-500.0,0.00043835,120]
[392485847,1761556545609,-500.0,0.00043835,120]
[392485848,1761556545636,-500.0,0.00043835,120]
[392485849,1761556545663,-500.0,0.00043835,120]
[392485850,1761556545691,-500.0,0.00043835,120]
[392485851,1761556545720,-500.0,0.00043835,120]
[392485852,1761556545747,-500.0,0.00043835,120]
[392485853,1761556545774,-500.0,0.00043835,120]
[392485854,1761556545801,-500.0,0.00043835,120]
[392485855,1761556545828,-500.0,0.00043835,120]
[392485856,1761556545855,-500.0,0.00043835,120]
[392485857,1761556545882,-500.0,0.00043835,120]
[392485858,1761556545909,-500.0,0.00043835,120]
[392485859,1761556545937,-500.0,0.00043835,120]
[392485860,1761556545966,-500.0,0.00043835,120]
[392485861,1761556545995,-500.0,0.00043835,120]
[392485862,1761556546024,-500.0,0.00043835,120]
[392485863,1761556546051,-500.0,0.00043835,120]
[392485864,1761556546078,-500.0,0.00043835,120]
[392485865,1761556546105,-500.0,0.00043835,120]
[392485866,1761556546133,-500.0,0.00043835,120]
[392485867,1761556546161,-500.0,0.00043835,120]
[392485868,1761556546189,-479.64447657,0.00043835,120]
[392485869,1761556546216,-500.0,0.00043835,120]
[392485870,1761556546243,-500.0,0.00043835,120]
[392485871,1761556546269,-500.0,0.00043835,120]
[392485872,1761556546295,-500.0,0.00043835,120]
[392485873,1761556546321,-500.0,0.00043835,120]
[392485874,1761556546348,-406.71746653,0.00043835,120]
[392485875,1761556546521,-500.0,0.00043835,120]
[392485876,1761556546551,-500.0,0.00043835,120]
[392485877,1761556546579,-507.49428448,0.00043835,120]
[392485878,1761556546606,-505.64670538,0.00043835,120]
[392485879,1761556546632,-637.91,0.00043836,30]
[392485880,1761556546658,-500.0,0.00043836,120]
[392485881,1761556546685,-500.0,0.00043836,120]
[392485882,1761556546713,-500.0,0.00043836,120]
[392485883,1761556546740,-500.0,0.00043836,120]
[392485884,1761556546767,-500.0,0.00043836,120]
[392485885,1761556546794,-500.0,0.00043836,120]
[392485886,1761556546820,-500.0,0.00043836,120]
[392485887,1761556546847,-500.0,0.00043836,120]
[392485888,1761556546873,-500.0,0.00043836,120]
[392485889,1761556546899,-538.92285867,0.00043836,120]
[392485890,1761556546927,-2339.0,0.00043836,120]
[392485891,1761556546954,-501.0,0.0004388,120]
[392485892,1761556546983,-73965.15362131,0.0004389,120]
[392485893,1761556558247,-1017.76772493,0.00037095,31]
[392485894,1761556558299,-150.0,0.00042608,30]
[392485895,1761556558342,-149206.8897365,0.0004389,120]
[392485896,1761556558377,-284.56,0.000439,120]
[392485897,1761556558417,-1264.24,0.000439,30]
[392485898,1761556558456,-1000.0,0.00044,120]
[392485899,1761556558494,-598.92449035,0.00044,120]
[392485900,1761556558527,-645.29037922,0.00044,30]
[392485901,1761556558559,-11382.27312829,0.00044,30]
[392485902,1761556558592,-841.90407532,0.00044,120]
[392485903,1761556558630,-33819.26899913,0.00044,120]
[392485904,1761556558662,-248.0,0.00044,120]
[392485905,1761556558699,-875.0,0.000441,30]
[392485906,1761556558732,-166.862889,0.00044109,120]
[392485907,1761556558767,-172.329104,0.00044109,120]
[392485908,1761556558801,-195.570356,0.00044109,120]
[392485909,1761556558834,-29953.48650001,0.0004414,120]
[392485910,1761556558866,-421.578,0.00044268,30]
[392485911,1761556558899,-2139774.74835705,0.00044269,120]
[392485912,1761556558934,-1000.0,0.00044269,30]
[392485913,1761556558968,-1272.22508465,0.00044297,58]
[392485914,1761556559003,-501.97,0.000443,120]
[392485915,1761556559035,-500.0,0.00044383,60]
[392485916,1761556559069,-500.0,0.00044383,60]
[392485917,1761556559105,-2119.032784,0.000444,120]
[392485918,1761556559137,-1103.35147338,0.000444,120]
[392485919,1761556559171,-476.05,0.00044426,30]
[392485920,1761556559209,-414.6,0.00044428,30]
[392485921,1761556559246,-150.0,0.00044428,30]
[392485922,1761556559292,-2500.0,0.0004444,90]
[392485923,1761556559332,-4279.06796201,0.000445,120]
[392485924,1761556559367,-5000.0,0.000445,120]
[392485925,1761556559402,-875.0,0.0004455,30]
[392485926,1761556559607,-600.0,0.00044581,32]
[392485927,1761556559642,-500.0,0.000446,120]
[392485928,1761556559681,-233.62,0.000446,30]
[392485929,1761556559717,-600.0,0.00044607,32]
[392485930,1761556559751,-5050.0,0.0004488,36]
[392485931,1761556559787,-1551.88994748,0.00044897,120]
[392485932,1761556559821,-2546.1751442,0.00044897,120]
[392485933,1761556559857,-645.0,0.00044897,120]
[392485934,1761556559892,-1029.8585,0.00044899,30]
[392485935,1761556559928,-500.0,0.00044998,30]
[392485936,1761556559969,-500.0,0.00044998,30]
[392485937,1761556560011,-250.0,0.00044998,30]
[392485938,1761556560046,-151.0,0.00044998,30]
[392485939,1761556560083,-500.0,0.00044999,30]
[392485940,1761556560118,-500.0,0.00044999,44]
[392485941,1761556560153,-500.0,0.00044999,61]
[392485943,1761556560190,-500.0,0.00044999,30]
[392485944,1761556560229,-500.0,0.00044999,44]
[392485945,1761556560264,-500.0,0.00044999,61]
[392485946,1761556560301,-500.0,0.00044999,120]
[392485947,1761556560338,-232.97864871,0.00044999,30]
[392485948,1761556560374,-500.0,0.00044999,30]
[392485949,1761556560410,-500.0,0.00044999,44]
[392485950,1761556560449,-250.0,0.00044999,30]
[392485951,1761556560485,-500.0,0.00044999,61]
[392485952,1761556560520,-250.0,0.00044999,44]
[392485953,1761556560556,-500.0,0.00044999,120]
[392485954,1761556560591,-250.0,0.00044999,61]
[392485955,1761556560626,-250.0,0.00044999,120]
[392485956,1761556560660,-250.0,0.00044999,30]
[392485957,1761556560696,-151.0,0.00044999,30]
[392485958,1761556560732,-250.0,0.00044999,44]
[392485959,1761556560766,-151.0,0.00044999,44]
[392485960,1761556560803,-151.0,0.00044999,61]
[392485961,1761556560837,-397.55468853,0.00044999,61]
[392485962,1761556560872,-151.0,0.00044999,120]
[392485963,1761556560905,-1000000.0,0.00045,120]
[392485964,1761556560937,-1000000.0,0.00045,120]
[392485965,1761556560970,-584897.93202724,0.00045,120]
[392485967,1761556564395,-1439.0,0.00042301,120]
[392485968,1761556564433,-221.37,0.00042942,30]
[392485969,1761556564467,-500.0,0.00043287,60]
[392485970,1761556564509,-415102.06797276,0.00045,120]
[392485971,1761556564541,-1000000.0,0.00045,120]
[392485972,1761556564575,-25850.06474862,0.00045,120]
[392485973,1761556564606,-1949.6595138,0.00045,120]
[392485974,1761556564635,-511.15045226,0.00045,30]
[392485975,1761556564667,-150.0,0.00045,120]
[392485976,1761556564698,-150.0,0.00045,120]
[392485977,1761556564728,-380.0,0.00045,120]
[392485978,1761556564759,-500.0,0.00045,120]
[392485979,1761556564791,-168086.0,0.00045,120]
[392485980,1761556564822,-2043.183159,0.00045,120]
[392485981,1761556564857,-7603.67091424,0.00045,120]
[392485982,1761556564890,-151.57335051,0.00045,120]
[392485983,1761556564919,-893.38,0.00045,120]
[392485984,1761556564953,-1000000.0,0.00045,120]
[392485985,1761556564986,-1000000.0,0.00045,120]
[392485986,1761556565020,-727771.493,0.00045,120]
[392485987,1761556565052,-482000.0,0.00045,120]
[392485988,1761556565083,-280.0,0.00045,60]
[392485989,1761556565114,-875.0,0.00045,30]
[392485990,1761556565148,-487.16655378,0.00045,30]
[392485991,1761556565181,-89152.06766316,0.00045,30]
[392485992,1761556565210,-1264.24,0.00045,30]
[392485993,1761556565240,-1092.0,0.00045,30]
[392485994,1761556565270,-291.50583701,0.00045025,30]
[392485995,1761556565301,-71255.40683486,0.00045025,120]
[392485996,1761556568060,-150.0,0.00042608,30]
[392485997,1761556568101,-500.0,0.00044383,60]
[392485998,1761556568136,-928744.59316514,0.00045025,120]
[392485999,1761556568169,-1000000.0,0.0004505,120]
[392486000,1761556568197,-89152.06766316,0.0004505,30]
[392486001,1761556568226,-1000000.0,0.00045075,120]
[392486002,1761556568256,-1000000.0,0.000451,120]
[392486003,1761556568289,-981453.3391717,0.00045125,120]
[392486004,1761556571297,-18546.6608283,0.00045125,120]
[392486005,1761556571330,-1000000.0,0.0004515,120]
[392486006,1761556571361,-1000000.0,0.00045175,120]
[392486007,1761556571390,-1000000.0,0.000452,120]
[392486008,1761556571418,-250.0,0.000452,30]
[392486009,1761556571450,-255.0,0.000452,30]
[392486010,1761556571481,-1000000.0,0.00045225,120]
[392486011,1761556571514,-999.0,0.00045225,120]
[392486012,1761556571545,-979949.3391717,0.0004525,120]
[392486013,1761556574292,-23600.22434269,0.00037,120]
[392486014,1761556574355,-151.0,0.00045,120]
[392486015,1761556574386,-20050.6608283,0.0004525,120]
[392486016,1761556574414,-89152.06766316,0.0004525,30]
[392486017,1761556574453,-1000000.0,0.00045275,120]
[392486018,1761556574488,-1000000.0,0.000453,120]
[392486019,1761556574518,-10000.0,0.000453,120]
[392486020,1761556574547,-1000000.0,0.00045325,120]
[392486021,1761556574576,-207.4,0.00045345,30]
[392486022,1761556574610,-200.0,0.00045346,30]
[392486023,1761556574639,-1000000.0,0.0004535,120]
[392486024,1761556574667,-291.50583701,0.0004535,30]
[392486025,1761556574697,-856347.14132884,0.00045375,120]
[392486028,1761556585130,-290.289,0.00042608,30]
[392486029,1761556585171,-476.05,0.00044426,30]
[392486030,1761556585204,-143652.85867116,0.00045375,120]
[392486031,1761556585234,-1000000.0,0.000454,120]
[392486032,1761556585261,-875.0,0.0004545,30]
[392486033,1761556585430,-500.0,0.00045479,60]
[392486034,1761556585467,-1000000.0,0.000455,120]
[392486035,1761556585496,-1000000.0,0.000455,120]
[392486036,1761556585527,-1000000.0,0.000455,120]
[392486037,1761556585554,-1000.27436713,0.000455,120]
[392486038,1761556585581,-150.0,0.000455,120]
[392486039,1761556585608,-500.0,0.00045601,120]
[392486040,1761556585635,-200.0,0.0004561,120]
[392486041,1761556585664,-852355.52796171,0.0004575,120]
[392486045,1761556601298,250.0,0.00017,2]
[392486046,1761556602386,300.0,0.00019,2]
[392486052,1761556687356,-164.00871101,0.00025,12]
[392486053,1761556687378,-184.90908488,0.00025,2]
[392486111,1761556726617,311.42861817,0.00022,20]
[392486112,1761556747402,-87.93880535,0.00025,2]
[392486113,1761556747425,-180.35876134,0.0002625,2]
[392486114,1761556748089,152.968821,7.945e-05,2]
[392486116,1761556822286,-107.4717678,0.0002625,2]
[392486117,1761556822308,-132.67742742,0.000263,2]
[392486118,1761556823910,-187.46597134,0.000263,2]
[392486119,1761556826231,-160.73,0.000263,2]
[392486126,1761557002307,-166.47208651,0.00024932,2]
[392486127,1761557004473,-333.52791349,0.00024932,2]
[392486128,1761557004494,-3.02349269,0.000263,2]
[392486129,1761557025732,160.50434125,0.00024372,2]
[392486136,1761557108042,957.41620658,0.00015,2]
[392486137,1761557108070,5000.0,0.00015,2]
[392486138,1761557108093,5000.0,0.00015,2]
[392486139,1761557108116,5000.0,0.00015,2]
[392486140,1761557108144,422587.54484694,0.00015,2]
[392486141,1761557108483,212.11616596,0.00031248,120]
[392486143,1761557122383,-306.0,0.00021,2]
[392486145,1761557126244,-294.50059951,0.000175,2]
[392486147,1761557129512,-319.25945848,0.000175,2]
[392486148,1761557132600,-180.74054152,0.000175,2]
[392486149,1761557135535,-18.57758397,0.000175,2]
[392486150,1761557135557,-140.94916933,0.00021,2]
[392486151,1761557152355,-259.76641038,0.00021,2]
[392486152,1761557155796,-211.6500511,0.00021,2]
[392486153,1761557159250,-183.59944995,0.00021,2]
[392486154,1761557162048,-245.2372681,0.0002001,2]
[392486156,1761557164357,-274.53312489,0.0002001,2]
[392486158,1761557166528,-245.35827814,0.0002001,2]
[392486159,1761557170951,-152.44445967,0.0002001,2]
[392486160,1761557170973,-112.72520261,0.00021,2]
[392486161,1761557174389,-189.15701469,0.00021,2]
[392486162,1761557177968,-230.16338904,0.00021,2]
[392486163,1761557180081,-154.31065115,0.00021,2]
[392486165,1761557183575,-182.50114052,0.00021,2]
[392486166,1761557185123,-247.85573749,0.00021,2]
[392486167,1761557187607,-370.22705656,0.00021,2]
[392486169,1761557190914,-468.53508549,0.00021,2]
[392486170,1761557194883,-257.38951814,0.00021,2]
[392486171,1761557197058,-279.0,0.00021,2]
[392486172,1761557199010,-228.25644588,0.00021,2]
[392486174,1761557203537,-264.76492536,0.00021,2]
[392486175,1761557205168,-66.74512908,0.00021,2]
[392486176,1761557205209,-162.57170921,0.00022011,2]
[392486177,1761557218080,49780.25860711,0.000162,5]
[392486178,1761557218105,17933.23139289,0.000162,5]
[392486180,1761557228087,-472.80596367,0.000207,2]
[392486181,1761557229832,-209.9398722,0.000207,2]
[392486182,1761557233527,-224.74328951,0.000207,2]
[392486183,1761557234129,-979.17758466,0.000207,2]
[392486184,1761557236080,-410.01030129,0.000207,2]
[392486186,1761557239670,-246.77696615,0.000207,2]
[392486187,1761557242086,-14556.06236202,0.000207,2]
[392486188,1761557242110,-87.42829079,0.00022011,2]
[392486189,1761557242131,-179.99,0.00022956,2]
[392486190,1761557242151,-250.0,0.00024212,2]
[392486191,1761557242172,-722.33821,0.00025748,2]
[392486192,1761557242192,-300.0,0.00025878,2]
[392486193,1761557242211,-517.69774431,0.00025879,2]
[392486194,1761557242231,-14313.23593046,0.00025879,2]
[392486195,1761557242251,-150.63907316,0.000262,2]
[392486196,1761557242270,-1765.56445394,0.00026298,2]
[392486197,1761557242290,-1000.0,0.00026397,2]
[392486198,1761557242309,-705.0,0.00026397,2]
[392486199,1761557242334,-500.0,0.00026398,2]
[392486200,1761557242354,-500.0,0.00026398,2]
[392486201,1761557242374,-500.0,0.00026398,2]
[392486202,1761557242397,-500.0,0.00026398,2]
[392486203,1761557242562,-500.0,0.00026398,2]
[392486204,1761557242583,-190.82323287,0.00026398,2]
[392486205,1761557242607,-500.0,0.00026398,2]
[392486206,1761557242627,-500.0,0.00026398,2]
[392486207,1761557242650,-500.0,0.00026398,2]
[392486208,1761557242670,-444.49605281,0.00026398,2]
[392486209,1761557242693,-500.0,0.00026398,2]
[392486210,1761557242712,-255.25666078,0.00026398,2]
[392486211,1761557242737,-500.0,0.00026398,2]
[392486212,1761557242759,-500.0,0.00026398,2]
[392486213,1761557242783,-500.0,0.00026398,2]
[392486214,1761557242806,-500.0,0.00026398,2]
[392486215,1761557242828,-500.0,0.00026398,2]
[392486216,1761557242850,-500.0,0.00026398,2]
[392486217,1761557242873,-500.0,0.00026398,2]
[392486218,1761557242895,-500.0,0.00026398,2]
[392486219,1761557242927,-500.0,0.00026398,2]
[392486220,1761557242954,-500.0,0.00026398,2]
[392486221,1761557242979,-500.0,0.00026398,2]
[392486222,1761557243003,-500.0,0.00026398,2]
[392486223,1761557243026,-500.0,0.00026398,2]
[392486224,1761557243050,-500.0,0.00026398,2]
[392486225,1761557243074,-500.0,0.00026398,2]
[392486226,1761557243097,-500.0,0.00026398,2]
[392486227,1761557243121,-500.0,0.00026398,2]
[392486228,1761557243145,-500.0,0.00026398,2]
[392486229,1761557243171,-500.0,0.00026398,2]
[392486230,1761557243196,-253.93376847,0.00026398,2]
[392486231,1761557243220,-500.0,0.00026398,2]
[392486232,1761557243247,-500.0,0.00026398,2]
[392486233,1761557243272,-500.0,0.00026398,2]
[392486234,1761557243296,-500.0,0.00026398,2]
[392486235,1761557243321,-500.0,0.00026398,2]
[392486236,1761557243347,-500.0,0.00026398,2]
[392486237,1761557243374,-500.0,0.00026398,2]
[392486238,1761557243399,-500.0,0.00026398,2]
[392486239,1761557243425,-500.0,0.00026398,2]
[392486240,1761557243451,-500.0,0.00026398,2]
[392486241,1761557243475,-500.0,0.00026398,2]
[392486242,1761557243500,-500.0,0.00026398,2]
[392486243,1761557243526,-500.0,0.00026398,2]
[392486244,1761557243549,-500.0,0.00026398,2]
[392486245,1761557243575,-500.0,0.00026398,2]
[392486246,1761557243599,-500.0,0.00026398,2]
[392486247,1761557243632,-500.0,0.00026398,2]
[392486248,1761557243657,-500.0,0.00026398,2]
[392486249,1761557243681,-500.0,0.00026398,2]
[392486250,1761557243706,-500.0,0.00026398,2]
[392486251,1761557243734,-500.0,0.00026398,2]
[392486252,1761557243757,-500.0,0.00026398,2]
[392486253,1761557243781,-500.0,0.00026398,2]
[392486254,1761557243807,-500.0,0.00026398,2]
[392486255,1761557243833,-500.0,0.00026398,2]
[392486256,1761557243858,-500.0,0.00026398,2]
[392486257,1761557243888,-500.0,0.00026398,2]
[392486258,1761557243913,-500.0,0.00026398,2]
[392486259,1761557243937,-631.65056632,0.00026398,2]
[392486260,1761557243965,-500.0,0.00026398,2]
[392486261,1761557243990,-500.0,0.00026398,2]
[392486262,1761557244015,-500.0,0.00026398,2]
[392486263,1761557244039,-500.0,0.00026398,2]
[392486264,1761557244065,-500.0,0.00026398,2]
[392486265,1761557244090,-500.0,0.00026398,2]
[392486266,1761557244115,-500.0,0.00026398,2]
[392486267,1761557244145,-500.0,0.00026398,2]
[392486268,1761557244172,-500.0,0.00026398,2]
[392486269,1761557244197,-500.0,0.00026398,2]
[392486270,1761557244221,-500.0,0.00026398,2]
[392486271,1761557244248,-500.0,0.00026398,2]
[392486272,1761557244271,-500.0,0.00026398,2]
[392486273,1761557244296,-500.0,0.00026398,2]
[392486274,1761557244320,-346.57837977,0.00026398,2]
[392486275,1761557244343,-1000.0,0.00026399,2]
[392486276,1761557244363,-26241.72070552,0.000264,2]
[392486277,1761557244383,-250.0,0.00026747,2]
[392486278,1761557244403,-150.63907314,0.0002718,2]
[392486279,1761557244425,-198.15875555,0.00027999,2]
[392486280,1761557244446,-383.64161267,0.00027999,2]
[392486281,1761557244466,-500.0,0.00027999,2]
[392486282,1761557244487,-500.0,0.00027999,2]
[392486283,1761557244507,-189.70000899,0.00027999,2]
[392486284,1761557244529,-7327.88561996,0.00028,2]
[392486285,1761557244549,-92967.09984003,0.00028,2]